[Event "*** Titled Tuesday Blitz"]
[Site "Chess.com"]
[Date "2018.11.06"]
[Round "7"]
[White "Fins0905"]
[Black "Alexander_Moskalenko"]
[Result "0-1"]
[WhiteElo "2609"]
[BlackElo "2876"]
[TimeControl "180+2"]
[EndTime "14:36:17 PST"]
[Termination "Alexander_Moskalenko won by checkmate"]

1. e4 {[%clk 0:03:01.9]} 1... c5 {[%clk 0:03:00.8]} 2. Nf3 {[%clk 0:03:02.5]}
2... d6 {[%clk 0:02:57.6]} 3. d4 {[%clk 0:03:03.7]} 3... cxd4 {[%clk 0:02:59.5]}
4. Nxd4 {[%clk 0:03:05.4]} 4... Nf6 {[%clk 0:03:00.5]} 5. Nc3 {[%clk 0:03:06.7]}
5... a6 {[%clk 0:03:02]} 6. Bg5 {[%clk 0:03:07]} 6... e6 {[%clk 0:03:01.8]} 7.
f4 {[%clk 0:03:07.6]} 7... Qb6 {[%clk 0:03:02.5]} 8. a3 {[%clk 0:03:06]} 8... h6
{[%clk 0:03:02.5]} 9. Bh4 {[%clk 0:02:58.9]} 9... Nc6 {[%clk 0:03:02.8]} 10. Bf2
{[%clk 0:02:46.8]} 10... Qc7 {[%clk 0:03:03.7]} 11. Qf3 {[%clk 0:02:39.7]} 11...
b5 {[%clk 0:02:54.1]} 12. Nxc6 {[%clk 0:02:30.6]} 12... Qxc6 {[%clk 0:02:56]}
13. O-O-O {[%clk 0:02:30.7]} 13... Be7 {[%clk 0:02:54.8]} 14. Bd3 {[%clk
0:02:25.7]} 14... Bb7 {[%clk 0:02:55.9]} 15. Rhe1 {[%clk 0:02:26.3]} 15... O-O
{[%clk 0:02:50.6]} 16. g4 {[%clk 0:02:18.9]} 16... Nd7 {[%clk 0:02:51.4]} 17. h4
{[%clk 0:02:15.9]} 17... Nc5 {[%clk 0:02:19]} 18. g5 {[%clk 0:02:11.8]} 18...
Nxd3+ {[%clk 0:02:20]} 19. Rxd3 {[%clk 0:02:05]} 19... a5 {[%clk 0:02:18.6]} 20.
gxh6 {[%clk 0:01:57.8]} 20... g6 {[%clk 0:02:19.7]} 21. Qg4 {[%clk 0:01:45]}
21... Kh7 {[%clk 0:02:16.2]} 22. h5 {[%clk 0:01:34.3]} 22... Rg8 {[%clk
0:02:17.6]} 23. hxg6+ {[%clk 0:01:30.6]} 23... Rxg6 {[%clk 0:02:19.5]} 24. Qh5
{[%clk 0:01:32]} 24... Rag8 {[%clk 0:01:27.9]} 25. f5 {[%clk 0:01:08.6]} 25...
Rxh6 {[%clk 0:01:17.4]} 26. Qf3 {[%clk 0:00:43.1]} 26... Bg5+ {[%clk 0:01:18.2]}
27. Kb1 {[%clk 0:00:39]} 27... b4 {[%clk 0:01:19.5]} 28. axb4 {[%clk 0:00:31]}
28... axb4 {[%clk 0:01:21.4]} 29. Na2 {[%clk 0:00:28.7]} 29... e5 {[%clk
0:01:18.4]} 30. Nxb4 {[%clk 0:00:17.5]} 30... Qa4 {[%clk 0:01:19.9]} 31. Na2
{[%clk 0:00:14.5]} 31... Bf4 {[%clk 0:01:12.7]} 32. Ra3 {[%clk 0:00:12.5]} 32...
Qc4 {[%clk 0:01:11.8]} 33. Nc3 {[%clk 0:00:10.8]} 33... Bc6 {[%clk 0:01:01.9]}
34. Ra7 {[%clk 0:00:10.3]} 34... Rb8 {[%clk 0:01:01]} 35. Rh1 {[%clk 0:00:07.4]}
35... Rxh1+ {[%clk 0:00:54.8]} 36. Qxh1+ {[%clk 0:00:09.3]} 36... Kg8 {[%clk
0:00:56.4]} 37. Qf3 {[%clk 0:00:08.9]} 37... Qf1+ {[%clk 0:00:49.9]} 38. Ka2
{[%clk 0:00:09.8]} 38... Qc1 {[%clk 0:00:50.6]} 39. Nd1 {[%clk 0:00:05.4]} 39...
Qxc2 {[%clk 0:00:49.4]} 40. Qc3 {[%clk 0:00:05.2]} 40... Qxd1 {[%clk 0:00:44.8]}
41. Qxc6 {[%clk 0:00:05.7]} 41... Qb3+ {[%clk 0:00:46]} 42. Ka1 {[%clk
0:00:06.1]} 42... Qxb2# {[%clk 0:00:47.9]} 0-1

[Event "*** Titled Tuesday Blitz"]
[Site "Chess.com"]
[Date "2018.11.06"]
[Round "7"]
[White "TheBigBadChessDad"]
[Black "NateSolon"]
[Result "0-1"]
[WhiteElo "2292"]
[BlackElo "2519"]
[TimeControl "180+2"]
[EndTime "14:36:27 PST"]
[Termination "NateSolon won on time"]

1. d4 {[%clk 0:03:01.9]} 1... d5 {[%clk 0:03:00.1]} 2. Bf4 {[%clk 0:03:01.6]}
2... Nf6 {[%clk 0:02:59.4]} 3. e3 {[%clk 0:03:02.4]} 3... c5 {[%clk 0:02:59.6]}
4. c3 {[%clk 0:03:03.2]} 4... Nc6 {[%clk 0:03:00.1]} 5. Nd2 {[%clk 0:03:03.8]}
5... cxd4 {[%clk 0:02:59.6]} 6. cxd4 {[%clk 0:03:01.8]} 6... Bf5 {[%clk
0:02:58.7]} 7. Qb3 {[%clk 0:03:01.2]} 7... Qb6 {[%clk 0:02:49.4]} 8. Qxb6 {[%clk
0:02:57.1]} 8... axb6 {[%clk 0:02:50.3]} 9. Bb5 {[%clk 0:02:51.9]} 9... e6
{[%clk 0:02:38.9]} 10. a3 {[%clk 0:02:52.5]} 10... Nh5 {[%clk 0:02:26.7]} 11.
Bc7 {[%clk 0:02:50.6]} 11... Be7 {[%clk 0:02:11.2]} 12. Bxb6 {[%clk 0:02:42.1]}
12... O-O {[%clk 0:02:11.9]} 13. Ngf3 {[%clk 0:02:38.9]} 13... Nb4 {[%clk
0:01:44.5]} 14. Ke2 {[%clk 0:02:25.1]} 14... Nc6 {[%clk 0:01:35.2]} 15. Rhc1
{[%clk 0:02:17.3]} 15... Rfc8 {[%clk 0:01:33.6]} 16. Rc3 {[%clk 0:02:08.9]}
16... Na7 {[%clk 0:01:23.7]} 17. Rxc8+ {[%clk 0:01:40.5]} 17... Nxc8 {[%clk
0:01:24.4]} 18. Bc5 {[%clk 0:01:36.6]} 18... Nf6 {[%clk 0:01:03.9]} 19. Rc1
{[%clk 0:01:32.3]} 19... Nd6 {[%clk 0:00:53.1]} 20. Bd3 {[%clk 0:01:17.8]} 20...
Kf8 {[%clk 0:00:52.2]} 21. Bxd6 {[%clk 0:01:09.2]} 21... Bxd3+ {[%clk
0:00:51.1]} 22. Kxd3 {[%clk 0:01:11.1]} 22... Bxd6 {[%clk 0:00:52.7]} 23. h3
{[%clk 0:00:57.6]} 23... Ke7 {[%clk 0:00:53.5]} 24. e4 {[%clk 0:00:56.3]} 24...
dxe4+ {[%clk 0:00:45.2]} 25. Nxe4 {[%clk 0:00:58.2]} 25... Nxe4 {[%clk
0:00:43.7]} 26. Kxe4 {[%clk 0:00:59.1]} 26... Ra5 {[%clk 0:00:44.3]} 27. Ne5
{[%clk 0:00:56.9]} 27... Rb5 {[%clk 0:00:45.1]} 28. b4 {[%clk 0:00:56.5]} 28...
Rd5 {[%clk 0:00:35.7]} 29. Rc8 {[%clk 0:00:40.6]} 29... f5+ {[%clk 0:00:36]} 30.
Ke3 {[%clk 0:00:34.3]} 30... Bxe5 {[%clk 0:00:37.1]} 31. dxe5 {[%clk 0:00:34.1]}
31... Rxe5+ {[%clk 0:00:39]} 32. Kf3 {[%clk 0:00:31.4]} 32... Rd5 {[%clk
0:00:39.7]} 33. Rc7+ {[%clk 0:00:28.6]} 33... Kf6 {[%clk 0:00:38.7]} 34. Rc3
{[%clk 0:00:26.6]} 34... e5 {[%clk 0:00:38.6]} 35. g4 {[%clk 0:00:20.8]} 35...
e4+ {[%clk 0:00:33.8]} 36. Ke3 {[%clk 0:00:17.2]} 36... g6 {[%clk 0:00:34.3]}
37. gxf5 {[%clk 0:00:15.3]} 37... gxf5 {[%clk 0:00:36.2]} 38. f3 {[%clk
0:00:12.4]} 38... exf3 {[%clk 0:00:30.7]} 39. Kxf3 {[%clk 0:00:11.7]} 39... b5
{[%clk 0:00:32]} 40. Kf4 {[%clk 0:00:06.2]} 40... Rd4+ {[%clk 0:00:32.1]} 41.
Ke3 {[%clk 0:00:07.3]} 41... Rh4 {[%clk 0:00:31.4]} 0-1

[Event "*** Titled Tuesday Blitz"]
[Site "Chess.com"]
[Date "2018.11.06"]
[Round "7"]
[White "Vuk2000"]
[Black "1random"]
[Result "0-1"]
[WhiteElo "2678"]
[BlackElo "2495"]
[TimeControl "180+2"]
[EndTime "14:36:28 PST"]
[Termination "1random won by resignation"]

1. d4 {[%clk 0:03:01.9]} 1... Nf6 {[%clk 0:02:59.9]} 2. Bg5 {[%clk 0:03:02]}
2... c5 {[%clk 0:03:00.8]} 3. Bxf6 {[%clk 0:03:01.9]} 3... gxf6 {[%clk
0:03:01.9]} 4. d5 {[%clk 0:03:01.5]} 4... Qb6 {[%clk 0:03:00.6]} 5. Qc1 {[%clk
0:03:02.4]} 5... f5 {[%clk 0:02:58.7]} 6. c4 {[%clk 0:03:02.9]} 6... Bg7 {[%clk
0:02:58.2]} 7. Nc3 {[%clk 0:03:03.4]} 7... d6 {[%clk 0:02:59]} 8. e3 {[%clk
0:03:03.7]} 8... Nd7 {[%clk 0:02:44.8]} 9. Be2 {[%clk 0:03:00.2]} 9... Qa5
{[%clk 0:02:33]} 10. Qc2 {[%clk 0:02:57.9]} 10... Nf6 {[%clk 0:02:17.3]} 11. Bd3
{[%clk 0:02:47.4]} 11... e6 {[%clk 0:02:10.3]} 12. Ne2 {[%clk 0:02:30.4]} 12...
b5 {[%clk 0:01:48.9]} 13. O-O {[%clk 0:02:20.2]} 13... bxc4 {[%clk 0:01:18.3]}
14. Bxc4 {[%clk 0:02:17.8]} 14... Rb8 {[%clk 0:00:55.2]} 15. Rad1 {[%clk
0:02:15.5]} 15... exd5 {[%clk 0:00:41.9]} 16. Bxd5 {[%clk 0:01:34.9]} 16... O-O
{[%clk 0:00:36.7]} 17. Bc4 {[%clk 0:01:32.6]} 17... Ne4 {[%clk 0:00:20.8]} 18.
Rc1 {[%clk 0:01:10]} 18... Be6 {[%clk 0:00:15.5]} 19. Bxe6 {[%clk 0:01:08.8]}
19... fxe6 {[%clk 0:00:16.6]} 20. Nf4 {[%clk 0:00:51.9]} 20... Nxc3 {[%clk
0:00:14.4]} 21. bxc3 {[%clk 0:00:40.8]} 21... Rfe8 {[%clk 0:00:15.7]} 22. Rfd1
{[%clk 0:00:41.2]} 22... d5 {[%clk 0:00:14.3]} 23. Nd3 {[%clk 0:00:25.4]} 23...
c4 {[%clk 0:00:14.1]} 24. Nf4 {[%clk 0:00:25.4]} 24... Qa3 {[%clk 0:00:14.1]}
25. Rd2 {[%clk 0:00:24.7]} 25... Rb6 {[%clk 0:00:13.8]} 26. Rdd1 {[%clk
0:00:14.4]} 26... Rb2 {[%clk 0:00:13.1]} 27. Ne2 {[%clk 0:00:10.7]} 27... Rxc2
{[%clk 0:00:13.4]} 28. Rxc2 {[%clk 0:00:12.6]} 28... Rb8 {[%clk 0:00:14.2]} 29.
Nf4 {[%clk 0:00:12.7]} 29... Kf7 {[%clk 0:00:15.1]} 30. g4 {[%clk 0:00:08.8]}
30... fxg4 {[%clk 0:00:15.7]} 31. e4 {[%clk 0:00:09.8]} 31... Be5 {[%clk
0:00:15.7]} 32. Ng2 {[%clk 0:00:09.5]} 32... Rb2 {[%clk 0:00:16.5]} 33. Rxb2
{[%clk 0:00:04.7]} 33... Qxb2 {[%clk 0:00:18.4]} 34. exd5 {[%clk 0:00:06.5]}
34... exd5 {[%clk 0:00:19.5]} 35. Ne3 {[%clk 0:00:08.1]} 35... Qxc3 {[%clk
0:00:14.7]} 36. Rxd5 {[%clk 0:00:08.4]} 36... Bd4 {[%clk 0:00:13.8]} 37. Nxg4
{[%clk 0:00:06.4]} 37... Qe1+ {[%clk 0:00:14.6]} 38. Kg2 {[%clk 0:00:07.3]}
38... Qe4+ {[%clk 0:00:16.2]} 0-1

[Event "*** Titled Tuesday Blitz"]
[Site "Chess.com"]
[Date "2018.11.06"]
[Round "7"]
[White "Sordis"]
[Black "Lagmantr"]
[Result "0-1"]
[WhiteElo "2284"]
[BlackElo "2513"]
[TimeControl "180+2"]
[EndTime "14:36:43 PST"]
[Termination "Lagmantr won by resignation"]

1. c4 {[%clk 0:03:01.9]} 1... e5 {[%clk 0:02:47.9]} 2. g3 {[%clk 0:03:02.8]}
2... Nf6 {[%clk 0:02:48]} 3. Bg2 {[%clk 0:03:03.6]} 3... Nc6 {[%clk 0:02:47.6]}
4. Nc3 {[%clk 0:03:03.7]} 4... Bb4 {[%clk 0:02:48.5]} 5. e4 {[%clk 0:03:04.8]}
5... O-O {[%clk 0:02:48.8]} 6. Nge2 {[%clk 0:03:05.3]} 6... d6 {[%clk
0:02:35.6]} 7. O-O {[%clk 0:03:05]} 7... Bg4 {[%clk 0:02:35.1]} 8. d3 {[%clk
0:03:05.4]} 8... Bxc3 {[%clk 0:02:28.6]} 9. bxc3 {[%clk 0:03:06.3]} 9... h6
{[%clk 0:02:28.5]} 10. h3 {[%clk 0:03:07]} 10... Bh5 {[%clk 0:02:28.6]} 11. f4
{[%clk 0:03:05.5]} 11... exf4 {[%clk 0:02:27.6]} 12. gxf4 {[%clk 0:03:01.5]}
12... Re8 {[%clk 0:02:25.8]} 13. Qe1 {[%clk 0:02:59.4]} 13... d5 {[%clk
0:02:15.5]} 14. cxd5 {[%clk 0:02:31.1]} 14... Bxe2 {[%clk 0:02:15.7]} 15. Qxe2
{[%clk 0:02:24.6]} 15... Nxd5 {[%clk 0:02:16.4]} 16. Bd2 {[%clk 0:02:23.9]}
16... f5 {[%clk 0:01:59.7]} 17. e5 {[%clk 0:02:18.3]} 17... Qd7 {[%clk
0:01:52.6]} 18. d4 {[%clk 0:02:13.6]} 18... Rad8 {[%clk 0:01:37.1]} 19. Rab1
{[%clk 0:02:00.3]} 19... Nb6 {[%clk 0:01:30.4]} 20. Be3 {[%clk 0:01:49.4]} 20...
Na5 {[%clk 0:01:26.6]} 21. Kh1 {[%clk 0:01:36.5]} 21... Nac4 {[%clk 0:01:21]}
22. Bc1 {[%clk 0:01:26.5]} 22... c6 {[%clk 0:01:14]} 23. Rb4 {[%clk 0:01:25.9]}
23... Qf7 {[%clk 0:01:07.5]} 24. Rg1 {[%clk 0:01:19.4]} 24... Nd6 {[%clk
0:01:03.4]} 25. Bf3 {[%clk 0:01:14.9]} 25... Ne4 {[%clk 0:01:01.1]} 26. Rb3
{[%clk 0:01:08.2]} 26... c5 {[%clk 0:00:39.2]} 27. Bxe4 {[%clk 0:00:12.9]} 27...
fxe4 {[%clk 0:00:38.4]} 28. dxc5 {[%clk 0:00:14.3]} 28... Na4 {[%clk 0:00:21]}
29. c6 {[%clk 0:00:12]} 29... bxc6 {[%clk 0:00:21.3]} 30. Be3 {[%clk 0:00:13]}
30... Rd3 {[%clk 0:00:21.2]} 31. c4 {[%clk 0:00:12.5]} 31... Nc3 {[%clk
0:00:21.3]} 32. Rxc3 {[%clk 0:00:11]} 32... Rxc3 {[%clk 0:00:21.9]} 33. Bd2
{[%clk 0:00:07.6]} 33... Rxh3+ {[%clk 0:00:22.2]} 34. Kg2 {[%clk 0:00:08.6]}
34... Rf3 {[%clk 0:00:22.9]} 35. Qxe4 {[%clk 0:00:06.5]} 35... Ra3 {[%clk
0:00:23.9]} 36. Qc2 {[%clk 0:00:06.7]} 36... Rxe5 {[%clk 0:00:19.2]} 37. Bc3
{[%clk 0:00:02.8]} 37... Re8 {[%clk 0:00:16.1]} 38. Rf1 {[%clk 0:00:03.7]} 38...
Qxc4 {[%clk 0:00:16]} 39. Rf3 {[%clk 0:00:04.8]} 39... Rxa2 {[%clk 0:00:16.7]}
40. Qxa2 {[%clk 0:00:06.4]} 40... Qxa2+ {[%clk 0:00:17.1]} 41. Kg3 {[%clk
0:00:08.3]} 41... Qd5 {[%clk 0:00:18.3]} 42. Kh3 {[%clk 0:00:09.6]} 42... Qxf3+
{[%clk 0:00:19.4]} 0-1

[Event "*** Titled Tuesday Blitz"]
[Site "Chess.com"]
[Date "2018.11.06"]
[Round "7"]
[White "dhanushbharadwaj"]
[Black "enriquetejedor"]
[Result "0-1"]
[WhiteElo "2491"]
[BlackElo "2515"]
[TimeControl "180+2"]
[EndTime "14:36:49 PST"]
[Termination "enriquetejedor won by checkmate"]

1. Nf3 {[%clk 0:03:01.9]} 1... c5 {[%clk 0:02:59.1]} 2. c4 {[%clk 0:03:02.3]}
2... Nf6 {[%clk 0:02:59.8]} 3. Nc3 {[%clk 0:03:03.2]} 3... d5 {[%clk 0:03:01.1]}
4. cxd5 {[%clk 0:03:04.1]} 4... Nxd5 {[%clk 0:03:03]} 5. d4 {[%clk 0:03:05.1]}
5... Nxc3 {[%clk 0:03:01.7]} 6. bxc3 {[%clk 0:03:07]} 6... e6 {[%clk 0:03:02.7]}
7. e4 {[%clk 0:03:07.2]} 7... Be7 {[%clk 0:03:03.7]} 8. Be3 {[%clk 0:03:07.9]}
8... O-O {[%clk 0:03:04.6]} 9. Be2 {[%clk 0:03:08.6]} 9... Qa5 {[%clk
0:03:05.4]} 10. Qd2 {[%clk 0:03:07.9]} 10... cxd4 {[%clk 0:03:06]} 11. cxd4
{[%clk 0:03:09.8]} 11... Bb4 {[%clk 0:03:06.7]} 12. O-O {[%clk 0:03:03.1]} 12...
Bxd2 {[%clk 0:02:24.1]} 13. Bxd2 {[%clk 0:03:05]} 13... Qd8 {[%clk 0:02:23.3]}
14. Rfd1 {[%clk 0:03:05]} 14... b6 {[%clk 0:02:20.1]} 15. d5 {[%clk 0:02:59.9]}
15... exd5 {[%clk 0:02:13.9]} 16. exd5 {[%clk 0:03:01.8]} 16... Bb7 {[%clk
0:02:14.4]} 17. Bc4 {[%clk 0:02:58.9]} 17... Bxd5 {[%clk 0:02:11.9]} 18. Bxd5
{[%clk 0:02:57]} 18... Qxd5 {[%clk 0:02:07.2]} 19. Bb4 {[%clk 0:02:58.4]} 19...
Rd8 {[%clk 0:01:51]} 20. Rxd5 {[%clk 0:02:56]} 20... Rxd5 {[%clk 0:01:52.9]} 21.
h4 {[%clk 0:02:52.7]} 21... Nc6 {[%clk 0:01:53.3]} 22. Bc3 {[%clk 0:02:51.7]}
22... Rc8 {[%clk 0:01:48.5]} 23. Bb2 {[%clk 0:02:50.4]} 23... h6 {[%clk
0:01:46.5]} 24. Re1 {[%clk 0:02:50.7]} 24... Ra5 {[%clk 0:01:40.8]} 25. a3
{[%clk 0:02:46]} 25... Kf8 {[%clk 0:01:36.5]} 26. g4 {[%clk 0:02:44.9]} 26...
Ra4 {[%clk 0:01:15.9]} 27. g5 {[%clk 0:02:44.3]} 27... Rg4+ {[%clk 0:01:02.6]}
28. Kf1 {[%clk 0:02:44.5]} 28... hxg5 {[%clk 0:01:03.9]} 29. hxg5 {[%clk
0:02:46.4]} 29... Rf4 {[%clk 0:01:04.4]} 30. Kg2 {[%clk 0:02:43.5]} 30... Na5
{[%clk 0:01:04.2]} 31. Rh1 {[%clk 0:02:44.2]} 31... Kg8 {[%clk 0:01:03.8]} 32.
Kg3 {[%clk 0:02:42.4]} 32... Re4 {[%clk 0:01:00.3]} 33. Rd1 {[%clk 0:02:41.1]}
33... Nc4 {[%clk 0:00:51.2]} 34. Ba1 {[%clk 0:02:40.2]} 34... Re7 {[%clk
0:00:37.2]} 35. a4 {[%clk 0:02:39.3]} 35... a6 {[%clk 0:00:30]} 36. Nh4 {[%clk
0:02:40.1]} 36... Rc5 {[%clk 0:00:26.6]} 37. f4 {[%clk 0:02:30.9]} 37... Re8
{[%clk 0:00:22]} 38. Rd7 {[%clk 0:02:28.7]} 38... Ne3 {[%clk 0:00:17.4]} 39. Ra7
{[%clk 0:02:18.1]} 39... b5 {[%clk 0:00:17.8]} 40. a5 {[%clk 0:02:12.1]} 40...
b4 {[%clk 0:00:17.5]} 41. Rxa6 {[%clk 0:02:02.8]} 41... Rb5 {[%clk 0:00:18.7]}
42. g6 {[%clk 0:02:00.5]} 42... f6 {[%clk 0:00:16.9]} 43. Nf3 {[%clk 0:01:45.5]}
43... Nf5+ {[%clk 0:00:14.5]} 44. Kf2 {[%clk 0:01:45.9]} 44... b3 {[%clk
0:00:15.9]} 45. Bb2 {[%clk 0:01:46.5]} 45... Rc5 {[%clk 0:00:13.7]} 46. Nd4
{[%clk 0:01:41.9]} 46... Nxd4 {[%clk 0:00:13.2]} 47. Bxd4 {[%clk 0:01:43.8]}
47... Rb5 {[%clk 0:00:12.4]} 48. Rb6 {[%clk 0:01:41.2]} 48... Rxb6 {[%clk
0:00:12.8]} 49. axb6 {[%clk 0:01:41.7]} 49... Rb8 {[%clk 0:00:14]} 50. Ke2
{[%clk 0:01:36.9]} 50... Rxb6 {[%clk 0:00:14.9]} 51. Bb2 {[%clk 0:01:30.1]}
51... Rc6 {[%clk 0:00:16.2]} 52. Kd3 {[%clk 0:01:28]} 52... Rc2 {[%clk
0:00:18.1]} 53. Bd4 {[%clk 0:01:29.6]} 53... Rg2 {[%clk 0:00:18.4]} 54. f5
{[%clk 0:01:27.6]} 54... b2 {[%clk 0:00:16.6]} 55. Bxb2 {[%clk 0:01:29.1]} 55...
Rxb2 {[%clk 0:00:17.9]} 56. Ke4 {[%clk 0:01:31]} 56... Kf8 {[%clk 0:00:19.2]}
57. Kd5 {[%clk 0:01:32.9]} 57... Ke7 {[%clk 0:00:21.1]} 58. Ke4 {[%clk
0:01:33.7]} 58... Rf2 {[%clk 0:00:23]} 59. Kd5 {[%clk 0:01:35.6]} 59... Rxf5+
{[%clk 0:00:24.3]} 60. Ke4 {[%clk 0:01:37]} 60... Ke6 {[%clk 0:00:26.2]} 61. Ke3
{[%clk 0:01:38]} 61... Rf1 {[%clk 0:00:28.1]} 62. Ke4 {[%clk 0:01:39.9]} 62...
Ra1 {[%clk 0:00:29.6]} 63. Kd3 {[%clk 0:01:41.8]} 63... Kf5 {[%clk 0:00:31.4]}
64. Kd4 {[%clk 0:01:43.7]} 64... Kxg6 {[%clk 0:00:33.3]} 65. Ke4 {[%clk
0:01:45.6]} 65... Kh5 {[%clk 0:00:35]} 66. Kd5 {[%clk 0:01:46.8]} 66... g5
{[%clk 0:00:36.9]} 67. Ke6 {[%clk 0:01:48.7]} 67... g4 {[%clk 0:00:38.8]} 68.
Kf5 {[%clk 0:01:49.5]} 68... g3 {[%clk 0:00:40.7]} 69. Kxf6 {[%clk 0:01:51.4]}
69... g2 {[%clk 0:00:42.6]} 70. Kg7 {[%clk 0:01:52.5]} 70... g1=Q+ {[%clk
0:00:44.5]} 71. Kh8 {[%clk 0:01:54.4]} 71... Rf1 {[%clk 0:00:45.1]} 72. Kh7
{[%clk 0:01:56]} 72... Qg6+ {[%clk 0:00:47]} 73. Kh8 {[%clk 0:01:57.3]} 73...
Rf8# {[%clk 0:00:48.9]} 0-1

[Event "*** Titled Tuesday Blitz"]
[Site "Chess.com"]
[Date "2018.11.06"]
[Round "7"]
[White "eljanov"]
[Black "EvgenyT"]
[Result "1-0"]
[WhiteElo "2834"]
[BlackElo "2924"]
[TimeControl "180+2"]
[EndTime "14:36:51 PST"]
[Termination "eljanov won on time"]

1. e4 {[%clk 0:03:00.4]} 1... e5 {[%clk 0:02:59.1]} 2. Nf3 {[%clk 0:03:00.9]}
2... Nc6 {[%clk 0:03:00]} 3. Bc4 {[%clk 0:03:01.3]} 3... Bc5 {[%clk 0:03:00.1]}
4. d3 {[%clk 0:03:01.1]} 4... Nf6 {[%clk 0:03:00.4]} 5. O-O {[%clk 0:03:00.8]}
5... O-O {[%clk 0:03:00.6]} 6. h3 {[%clk 0:03:00.7]} 6... d6 {[%clk 0:02:58.2]}
7. c3 {[%clk 0:03:01.1]} 7... a6 {[%clk 0:02:57.9]} 8. a4 {[%clk 0:03:02.3]}
8... Ba7 {[%clk 0:02:48.5]} 9. Re1 {[%clk 0:03:03.3]} 9... h6 {[%clk 0:02:47.5]}
10. Nbd2 {[%clk 0:03:00.2]} 10... Re8 {[%clk 0:02:47.9]} 11. b4 {[%clk
0:02:59.1]} 11... Be6 {[%clk 0:02:47.6]} 12. Bxe6 {[%clk 0:02:58.4]} 12... Rxe6
{[%clk 0:02:48.2]} 13. Qc2 {[%clk 0:02:59.6]} 13... Qd7 {[%clk 0:02:49.1]} 14.
Nb3 {[%clk 0:02:51]} 14... Ne7 {[%clk 0:02:32.1]} 15. d4 {[%clk 0:02:36.5]}
15... Ng6 {[%clk 0:02:31.4]} 16. d5 {[%clk 0:02:04.4]} 16... Re7 {[%clk
0:01:40.9]} 17. Be3 {[%clk 0:02:04.8]} 17... Bxe3 {[%clk 0:01:39.3]} 18. Rxe3
{[%clk 0:02:05.5]} 18... c6 {[%clk 0:01:30.9]} 19. c4 {[%clk 0:02:01.1]} 19...
cxd5 {[%clk 0:01:29.1]} 20. cxd5 {[%clk 0:02:00.9]} 20... Rc8 {[%clk 0:01:29.2]}
21. Qb2 {[%clk 0:01:51.6]} 21... Qe8 {[%clk 0:01:28.2]} 22. a5 {[%clk
0:01:25.7]} 22... Rec7 {[%clk 0:01:27.1]} 23. Rc1 {[%clk 0:01:26.6]} 23... Nf4
{[%clk 0:01:16.8]} 24. Kh2 {[%clk 0:01:05.2]} 24... Qb5 {[%clk 0:01:13.4]} 25.
Rxc7 {[%clk 0:00:59.2]} 25... Rxc7 {[%clk 0:01:13.4]} 26. Nbd2 {[%clk
0:00:55.6]} 26... h5 {[%clk 0:00:23.5]} 27. g3 {[%clk 0:00:48.3]} 27... Ng6
{[%clk 0:00:19.2]} 28. Rc3 {[%clk 0:00:46]} 28... Rxc3 {[%clk 0:00:18.6]} 29.
Qxc3 {[%clk 0:00:47.2]} 29... Qe2 {[%clk 0:00:19.7]} 30. Qe3 {[%clk 0:00:46.3]}
30... Qd1 {[%clk 0:00:17.5]} 31. Nc4 {[%clk 0:00:39.1]} 31... h4 {[%clk
0:00:10.4]} 32. Nxh4 {[%clk 0:00:37]} 32... Nxh4 {[%clk 0:00:10.4]} 33. gxh4
{[%clk 0:00:38.2]} 33... Ne8 {[%clk 0:00:07.7]} 34. Kg2 {[%clk 0:00:27.6]} 34...
Qc2 {[%clk 0:00:06.2]} 35. Nb6 {[%clk 0:00:25.2]} 35... Nf6 {[%clk 0:00:07]} 36.
Kf3 {[%clk 0:00:14]} 36... g6 {[%clk 0:00:02.7]} 37. Qe2 {[%clk 0:00:10.3]}
37... Qc3+ {[%clk 0:00:02.9]} 38. Kg2 {[%clk 0:00:11.4]} 38... Nh5 {[%clk
0:00:03.1]} 39. Qe3 {[%clk 0:00:08.4]} 1-0

[Event "*** Titled Tuesday Blitz"]
[Site "Chess.com"]
[Date "2018.11.06"]
[Round "7"]
[White "GMHess"]
[Black "kleinebeer98"]
[Result "0-1"]
[WhiteElo "2656"]
[BlackElo "2620"]
[TimeControl "180+2"]
[EndTime "14:36:51 PST"]
[Termination "kleinebeer98 won by resignation"]

1. d4 {[%clk 0:03:01.9]} 1... e6 {[%clk 0:03:01.3]} 2. c4 {[%clk 0:03:02.6]}
2... b6 {[%clk 0:03:02.6]} 3. Nc3 {[%clk 0:03:00]} 3... Bb7 {[%clk 0:03:03.5]}
4. e4 {[%clk 0:02:59.8]} 4... Bb4 {[%clk 0:03:03.3]} 5. Qc2 {[%clk 0:02:50.8]}
5... Qh4 {[%clk 0:02:47.2]} 6. d5 {[%clk 0:02:37.1]} 6... exd5 {[%clk
0:02:30.8]} 7. cxd5 {[%clk 0:02:06.3]} 7... Nf6 {[%clk 0:02:10.1]} 8. Bd3 {[%clk
0:01:51.8]} 8... Ba6 {[%clk 0:02:09.4]} 9. Bxa6 {[%clk 0:01:25]} 9... Nxa6
{[%clk 0:02:11.3]} 10. Bd2 {[%clk 0:01:20.9]} 10... Bxc3 {[%clk 0:02:01.2]} 11.
Bxc3 {[%clk 0:01:22.8]} 11... Qxe4+ {[%clk 0:02:01.2]} 12. Qxe4+ {[%clk
0:01:24.2]} 12... Nxe4 {[%clk 0:02:03.1]} 13. Bxg7 {[%clk 0:01:23.4]} 13... Rg8
{[%clk 0:02:04.3]} 14. Be5 {[%clk 0:01:23.3]} 14... Nb4 {[%clk 0:02:00.6]} 15.
Kf1 {[%clk 0:01:01.9]} 15... O-O-O {[%clk 0:01:06.4]} 16. Rd1 {[%clk 0:00:32.6]}
16... Rde8 {[%clk 0:01:05]} 17. Nf3 {[%clk 0:00:29.5]} 17... Ng5 {[%clk
0:00:56.3]} 18. Nxg5 {[%clk 0:00:14.7]} 18... Rxg5 {[%clk 0:00:58.2]} 19. f4
{[%clk 0:00:16.3]} 19... Rf5 {[%clk 0:00:46.6]} 20. g4 {[%clk 0:00:16.7]} 20...
Rexe5 {[%clk 0:00:48.1]} 21. gxf5 {[%clk 0:00:16.3]} 21... Rxf5 {[%clk 0:00:50]}
22. d6 {[%clk 0:00:15.2]} 22... Nd5 {[%clk 0:00:45.4]} 23. Kf2 {[%clk
0:00:11.8]} 23... Nxf4 {[%clk 0:00:43.4]} 24. Rhf1 {[%clk 0:00:08.8]} 24... Nd5+
{[%clk 0:00:35.3]} 25. Kg3 {[%clk 0:00:07.8]} 25... Rg5+ {[%clk 0:00:28.9]} 26.
Kh4 {[%clk 0:00:06.8]} 26... h6 {[%clk 0:00:28.6]} 27. Rxf7 {[%clk 0:00:04.8]}
27... Ne3 {[%clk 0:00:15.7]} 28. Rf8+ {[%clk 0:00:03.2]} 28... Kb7 {[%clk
0:00:16.7]} 29. dxc7 {[%clk 0:00:04.8]} 29... Kxc7 {[%clk 0:00:15.8]} 30. Rd3
{[%clk 0:00:05.9]} 30... Nd5 {[%clk 0:00:05.5]} 31. Rg3 {[%clk 0:00:05.5]} 31...
Re5 {[%clk 0:00:06.5]} 32. Rh8 {[%clk 0:00:05.2]} 32... Ne7 {[%clk 0:00:07.9]}
33. Rf3 {[%clk 0:00:05.3]} 33... Ng6+ {[%clk 0:00:08.6]} 34. Kg3 {[%clk
0:00:05.7]} 34... Nxh8 {[%clk 0:00:10.5]} 35. Rf6 {[%clk 0:00:06.5]} 35... h5
{[%clk 0:00:11.4]} 36. Kh4 {[%clk 0:00:06.7]} 36... d5 {[%clk 0:00:11.5]} 37.
Rh6 {[%clk 0:00:06.5]} 37... Nf7 {[%clk 0:00:10.9]} 38. Rh7 {[%clk 0:00:08]}
38... Rf5 {[%clk 0:00:12]} 39. Rxh5 {[%clk 0:00:07.7]} 39... Rxh5+ {[%clk
0:00:12.7]} 40. Kxh5 {[%clk 0:00:09.6]} 40... Ne5 {[%clk 0:00:12.6]} 41. Kg5
{[%clk 0:00:10]} 41... d4 {[%clk 0:00:14.1]} 42. Kf4 {[%clk 0:00:11.3]} 42... d3
{[%clk 0:00:12]} 43. Ke3 {[%clk 0:00:11.8]} 43... Kd6 {[%clk 0:00:13.5]} 44. h4
{[%clk 0:00:13.4]} 44... Ke6 {[%clk 0:00:14.9]} 45. h5 {[%clk 0:00:14.9]} 45...
Kf6 {[%clk 0:00:16.3]} 0-1